fUSD/lending_fUSD_20250720
["ID","MTS","AMOUNT","RATE_DAILY","PERIOD"]
[373576254,1753050640635,-151.0,0.00019178,2]
[373576256,1753050640644,-480.0,0.00019178,2]
[373576258,1753050640654,-1000.0,0.00019178,2]
[373576260,1753050640663,-364.28583334,0.00019178,2]
[373576262,1753050640673,-460.0,0.00019178,2]
[373576264,1753050640682,-316.29016341,0.00019178,2]
[373576266,1753050640694,-480.0,0.00019178,2]
[373576268,1753050640703,-391.82772099,0.00019178,2]
[373576270,1753050640713,-480.0,0.00019178,2]
[373576272,1753050640722,-480.0,0.00019178,2]
[373576274,1753050640732,-480.0,0.00019178,2]
[373576276,1753050640742,-480.0,0.00019178,2]
[373576278,1753050640751,-480.0,0.00019178,2]
[373576280,1753050640760,-480.0,0.00019178,2]
[373576282,1753050640769,-252.34,0.00019178,2]
[373576284,1753050640779,-480.0,0.00019178,2]
[373576286,1753050640789,-480.0,0.00019178,2]
[373576288,1753050640799,-775.21,0.00019178,2]
[373576290,1753050640808,-480.0,0.00019178,2]
[373576292,1753050640818,-480.0,0.00019178,2]
[373576294,1753050640827,-460.0,0.00019178,2]
[373576296,1753050640837,-480.0,0.00019178,2]
[373576298,1753050640846,-480.0,0.00019178,2]
[373576300,1753050640856,-454.85721819,0.00019178,2]
[373576302,1753050640866,-480.0,0.00019178,2]
[373576304,1753050640875,-630.15,0.00019178,2]
[373576306,1753050640884,-549.05237403,0.00019178,2]
[373576308,1753050640894,-460.0,0.00019178,2]
[373576310,1753050640903,-480.0,0.00019178,2]
[373576312,1753050640913,-463.79681928,0.00019178,2]
[373576314,1753050640922,-480.0,0.00019178,2]
[373576316,1753050640932,-318.92087434,0.00019178,2]
[373576318,1753050640942,-480.0,0.00019178,2]
[373576320,1753050640952,-480.0,0.00019178,2]
[373576322,1753050640961,-480.0,0.00019178,2]
[373576324,1753050640970,-287.07,0.00019178,2]
[373576326,1753050640979,-406.7491079,0.00019178,2]
[373576328,1753050640988,-480.0,0.00019178,2]
[373576330,1753050640997,-480.0,0.00019178,2]
[373576332,1753050641006,-480.0,0.00019178,2]
[373576333,1753050641019,-480.0,0.00019178,2]
[373576336,1753050641029,-364.92890408,0.00019178,2]
[373576338,1753050641038,-480.0,0.00019178,2]
[373576339,1753050641047,-480.0,0.00019178,2]
[373576341,1753050641056,-480.0,0.00019178,2]
[373576343,1753050641066,-480.0,0.00019178,2]
[373576345,1753050641075,-460.0,0.00019178,2]
[373576347,1753050641084,-480.0,0.00019178,2]
[373576349,1753050641094,-480.0,0.00019178,2]
[373576351,1753050641103,-744.72,0.00019178,2]
[373576353,1753050641112,-553.66,0.00019178,2]
[373576356,1753050641122,-288.56509052,0.00019178,2]
[373576357,1753050641131,-480.0,0.00019178,2]
[373576360,1753050641141,-480.0,0.00019178,2]
[373576362,1753050641150,-465.12248935,0.00019178,2]
[373576402,1753050641519,-530.65,0.00019178,2]
[373576404,1753050641532,-460.0,0.00019178,2]
[373576406,1753050641545,-480.0,0.00019178,2]
[373576408,1753050641555,-480.0,0.00019178,2]
[373576410,1753050641565,-480.0,0.00019178,2]
[373576412,1753050641575,-480.0,0.00019178,2]
[373576414,1753050641585,-480.0,0.00019178,2]
[373576416,1753050641594,-480.0,0.00019178,2]
[373576418,1753050641605,-220.0,0.00019178,2]
[373576420,1753050641616,-300.0,0.00019178,2]
[373576422,1753050641625,-480.0,0.00019178,2]
[373576424,1753050641635,-480.0,0.00019178,2]
[373576426,1753050641645,-480.0,0.00019178,2]
[373576428,1753050641654,-480.0,0.00019178,2]
[373576430,1753050641663,-515.51,0.00019178,2]
[373576432,1753050641673,-480.0,0.00019178,2]
[373576434,1753050641682,-480.0,0.00019178,2]
[373576436,1753050641692,-480.0,0.00019178,2]
[373576438,1753050641705,-480.0,0.00019178,2]
[373576440,1753050641715,-480.0,0.00019178,2]
[373576442,1753050641724,-480.0,0.00019178,2]
[373576444,1753050641734,-480.0,0.00019178,2]
[373576446,1753050641743,-567.51,0.00019178,2]
[373576448,1753050641753,-480.0,0.00019178,2]
[373576450,1753050641763,-518.28,0.00019178,2]
[373576452,1753050641772,-480.0,0.00019178,2]
[373576454,1753050641782,-480.0,0.00019178,2]
[373576456,1753050641792,-585.81,0.00019178,2]
[373576458,1753050641802,-480.0,0.00019178,2]
[373576460,1753050641811,-480.0,0.00019178,2]
[373576461,1753050641820,-460.0,0.00019178,2]
[373576462,1753050641830,-480.0,0.00019178,2]
[373576463,1753050641840,-480.0,0.00019178,2]
[373576464,1753050641849,-480.0,0.00019178,2]
[373576465,1753050641859,-460.0,0.00019178,2]
[373576466,1753050641868,-579.37,0.00019178,2]
[373576467,1753050641878,-480.0,0.00019178,2]
[373576468,1753050641887,-480.0,0.00019178,2]
[373576469,1753050641896,-480.0,0.00019178,2]
[373576470,1753050641905,-460.0,0.00019178,2]
[373576471,1753050641915,-480.0,0.00019178,2]
[373576472,1753050641924,-480.0,0.00019178,2]
[373576473,1753050641933,-311.71234249,0.00019178,2]
[373576474,1753050641943,-480.0,0.00019178,2]
[373576475,1753050641953,-480.0,0.00019178,2]
[373576476,1753050641963,-605.78,0.00019178,2]
[373576477,1753050641972,-308.63346002,0.00019178,2]
[373576479,1753050641981,-480.0,0.00019178,2]
[373576481,1753050641990,-480.0,0.00019178,2]
[373576483,1753050642000,-553.26844107,0.00019178,2]
[373576485,1753050642009,-460.0,0.00019178,2]
[373576487,1753050642019,-480.0,0.00019178,2]
[373576489,1753050642029,-460.0,0.00019178,2]
[373576491,1753050642038,-480.0,0.00019178,2]
[373576494,1753050642048,-554.32134226,0.00019178,2]
[373576495,1753050642058,-480.0,0.00019178,2]
[373576498,1753050642067,-480.0,0.00019178,2]
[373576500,1753050642076,-495.01772428,0.00019178,2]
[373576502,1753050642086,-480.0,0.00019178,2]
[373576504,1753050642095,-480.0,0.00019178,2]
[373576506,1753050642105,-460.0,0.00019178,2]
[373576508,1753050642114,-480.0,0.00019178,2]
[373576510,1753050642123,-480.0,0.00019178,2]
[373576512,1753050642132,-480.0,0.00019178,2]
[373576514,1753050642142,-480.0,0.00019178,2]
[373576516,1753050642151,-480.0,0.00019178,2]
[373576518,1753050642161,-480.0,0.00019178,2]
[373576520,1753050642171,-331.65895762,0.00019178,2]
[373576522,1753050642180,-460.0,0.00019178,2]
[373576525,1753050642190,-480.0,0.00019178,2]
[373576528,1753050642203,-460.0,0.00019178,2]
[373576531,1753050642213,-480.0,0.00019178,2]
[373576535,1753050642222,-480.0,0.00019178,2]
[373576539,1753050642232,-480.0,0.00019178,2]
[373576542,1753050642242,-480.0,0.00019178,2]
[373576545,1753050642251,-494.62,0.00019178,2]
[373576548,1753050642261,-480.0,0.00019178,2]
[373576550,1753050642270,-480.0,0.00019178,2]
[373576552,1753050642279,-1170.65,0.00019178,2]
[373576554,1753050642288,-480.0,0.00019178,2]
[373576556,1753050642298,-480.0,0.00019178,2]
[373576558,1753050642307,-460.0,0.00019178,2]
[373576560,1753050642316,-480.0,0.00019178,2]
[373576562,1753050642326,-480.0,0.00019178,2]
[373576564,1753050642336,-480.0,0.00019178,2]
[373576566,1753050642346,-480.0,0.00019178,2]
[373576568,1753050642356,-480.0,0.00019178,2]
[373576570,1753050642366,-480.0,0.00019178,2]
[373576572,1753050642376,-480.0,0.00019178,2]
[373576574,1753050642385,-480.0,0.00019178,2]
[373576576,1753050642395,-480.0,0.00019178,2]
[373576578,1753050642405,-480.0,0.00019178,2]
[373576580,1753050642415,-480.0,0.00019178,2]
[373576582,1753050642425,-480.0,0.00019178,2]
[373576584,1753050642435,-480.0,0.00019178,2]
[373576586,1753050642446,-460.0,0.00019178,2]
[373576588,1753050642456,-480.0,0.00019178,2]
[373576590,1753050642466,-480.0,0.00019178,2]
[373576592,1753050642476,-480.0,0.00019178,2]
[373576595,1753050642486,-480.0,0.00019178,2]
[373576598,1753050642496,-500.0,0.00019178,2]
[373576601,1753050642506,-346.98949928,0.00019178,2]
[373576604,1753050642516,-480.0,0.00019178,2]
[373576607,1753050642526,-480.0,0.00019178,2]
[373576610,1753050642541,-480.0,0.00019178,2]
[373576613,1753050642551,-480.0,0.00019178,2]
[373576615,1753050642560,-480.0,0.00019178,2]
[373576617,1753050642570,-480.0,0.00019178,2]
[373576619,1753050642580,-480.0,0.00019178,2]
[373576621,1753050642591,-822.44,0.00019178,2]
[373576624,1753050642613,-480.0,0.00019178,2]
[373576626,1753050642623,-480.0,0.00019178,2]
[373576629,1753050642633,-260.87547163,0.00019178,2]
[373576632,1753050642642,-480.0,0.00019178,2]
[373576634,1753050642652,-480.0,0.00019178,2]
[373576636,1753050642661,-480.0,0.00019178,2]
[373576638,1753050642670,-460.0,0.00019178,2]
[373576640,1753050642679,-480.0,0.00019178,2]
[373576641,1753050642689,-739.72,0.00019178,2]
[373576644,1753050642703,-298.64644343,0.00019178,2]
[373576646,1753050642713,-480.0,0.00019178,2]
[373576648,1753050642722,-789.44,0.00019178,2]
[373576650,1753050642732,-281.957235,0.00019178,2]
[373576652,1753050642742,-480.0,0.00019178,2]
[373576654,1753050642751,-480.0,0.00019178,2]
[373576656,1753050642761,-480.0,0.00019178,2]
[373576658,1753050642770,-480.0,0.00019178,2]
[373576660,1753050642780,-480.0,0.00019178,2]
[373576662,1753050642791,-480.0,0.00019178,2]
[373576664,1753050642801,-524.12489445,0.00019178,2]
[373576666,1753050642811,-350.36792267,0.00019178,2]
[373576668,1753050642820,-480.0,0.00019178,2]
[373576670,1753050642830,-480.0,0.00019178,2]
[373576672,1753050642839,-480.0,0.00019178,2]
[373576674,1753050642849,-480.0,0.00019178,2]
[373576676,1753050642859,-480.0,0.00019178,2]
[373576678,1753050642868,-849.588286,0.00019178,2]
[373576680,1753050642878,-460.0,0.00019178,2]
[373576682,1753050642887,-280.0,0.00019178,2]
[373576684,1753050642896,-488.48,0.00019178,2]
[373576686,1753050642906,-1142.64,0.00019178,2]
[373576688,1753050642916,-420.53,0.00019178,2]
[373576690,1753050642925,-74.29132242,0.00019178,2]
[373576745,1753050643430,-405.70867758,0.00019178,2]
[373576747,1753050643440,-464.07664422,0.00019178,2]
[373576749,1753050643450,-480.0,0.00019178,2]
[373576751,1753050643460,-480.0,0.00019178,2]
[373576753,1753050643469,-480.0,0.00019178,2]
[373576755,1753050643479,-713.43,0.00019178,2]
[373576757,1753050643489,-480.0,0.00019178,2]
[373576759,1753050643499,-480.0,0.00019178,2]
[373576761,1753050643509,-480.0,0.00019178,2]
[373576763,1753050643519,-480.0,0.00019178,2]
[373576765,1753050643532,-480.0,0.00019178,2]
[373576767,1753050643541,-480.0,0.00019178,2]
[373576769,1753050643550,-480.0,0.00019178,2]
[373576771,1753050643560,-480.0,0.00019178,2]
[373576773,1753050643570,-480.0,0.00019178,2]
[373576775,1753050643580,-480.0,0.00019178,2]
[373576777,1753050643589,-480.0,0.00019178,2]
[373576779,1753050643599,-559.76,0.00019178,2]
[373576781,1753050643608,-480.0,0.00019178,2]
[373576783,1753050643619,-480.0,0.00019178,2]
[373576785,1753050643629,-480.0,0.00019178,2]
[373576787,1753050643639,-480.0,0.00019178,2]
[373576789,1753050643649,-671.79,0.00019178,2]
[373576791,1753050643658,-480.0,0.00019178,2]
[373576793,1753050643667,-480.0,0.00019178,2]
[373576795,1753050643677,-480.0,0.00019178,2]
[373576797,1753050643686,-164.43180568,0.00019178,2]
[373576809,1753050643787,-315.56819432,0.00019178,2]
[373576811,1753050643797,-480.0,0.00019178,2]
[373576813,1753050643806,-460.0,0.00019178,2]
[373576815,1753050643815,-480.0,0.00019178,2]
[373576817,1753050643825,-480.0,0.00019178,2]
[373576819,1753050643834,-511.77,0.00019178,2]
[373576821,1753050643843,-29.81140343,0.00019178,2]
[373576831,1753050643923,-450.18859657,0.00019178,2]
[373576833,1753050643933,-432.27742694,0.00019178,2]
[373576836,1753050643951,-47.72257306,0.00019178,2]
[373576838,1753050643960,-362.78280554,0.00019178,2]
[373576840,1753050643971,-117.21719446,0.00019178,2]
[373576842,1753050643982,-480.0,0.00019178,2]
[373576845,1753050643992,-480.0,0.00019178,2]
[373576847,1753050644001,-480.0,0.00019178,2]
[373576849,1753050644010,-329.35198962,0.00019178,2]
[373576851,1753050644020,-480.0,0.00019178,2]
[373576853,1753050644028,-480.0,0.00019178,2]
[373576855,1753050644038,-480.0,0.00019178,2]
[373576857,1753050644047,-467.16863204,0.00019178,2]
[373576859,1753050644056,-480.0,0.00019178,2]
[373576861,1753050644066,-480.0,0.00019178,2]
[373576863,1753050644076,-901.01,0.00019178,2]
[373576865,1753050644085,-480.0,0.00019178,2]
[373576867,1753050644095,-1440.12,0.00019178,2]
[373576869,1753050644104,-480.0,0.00019178,2]
[373576870,1753050644113,-480.0,0.00019178,2]
[373576872,1753050644122,-480.0,0.00019178,2]
[373576874,1753050644131,-480.0,0.00019178,2]
[373576876,1753050644140,-344.08010834,0.00019178,2]
[373576878,1753050644152,-480.0,0.00019178,2]
[373576880,1753050644162,-480.0,0.00019178,2]
[373576882,1753050644179,-480.0,0.00019178,2]
[373576884,1753050644189,-435.37429766,0.00019178,2]
[373576886,1753050644200,-480.0,0.00019178,2]
[373576888,1753050644209,-480.0,0.00019178,2]
[373576890,1753050644218,-480.0,0.00019178,2]
[373576892,1753050644228,-480.0,0.00019178,2]
[373576894,1753050644237,-480.0,0.00019178,2]
[373576896,1753050644246,-556.11,0.00019178,2]
[373576898,1753050644254,-480.0,0.00019178,2]
[373576900,1753050644263,-480.0,0.00019178,2]
[373576902,1753050644272,-480.0,0.00019178,2]
[373576904,1753050644281,-480.0,0.00019178,2]
[373576906,1753050644290,-440.0,0.00019178,2]
[373576908,1753050644300,-480.0,0.00019178,2]
[373576910,1753050644310,-1454.85,0.00019178,2]
[373576912,1753050644319,-480.0,0.00019178,2]
[373576914,1753050644328,-480.0,0.00019178,2]
[373576916,1753050644337,-536.41,0.00019178,2]
[373576918,1753050644346,-480.0,0.00019178,2]
[373576920,1753050644355,-480.0,0.00019178,2]
[373576922,1753050644364,-161.61429889,0.00019178,2]
[373576924,1753050644373,-480.0,0.00019178,2]
[373576926,1753050644382,-480.0,0.00019178,2]
[373576928,1753050644391,-480.0,0.00019178,2]
[373576930,1753050644400,-480.0,0.00019178,2]
[373576932,1753050644410,-1048.86,0.00019178,2]
[373576934,1753050644419,-772.7,0.00019178,2]
[373576936,1753050644428,-440.0,0.00019178,2]
[373576938,1753050644437,-480.0,0.00019178,2]
[373576940,1753050644447,-378.35289183,0.00019178,2]
[373576942,1753050644456,-701.54,0.00019178,2]
[373576944,1753050644465,-480.0,0.00019178,2]
[373576946,1753050644474,-480.0,0.00019178,2]
[373576948,1753050644483,-480.0,0.00019178,2]
[373576950,1753050644492,-35.24058716,0.00019178,2]
[373576953,1753050644510,-444.75941284,0.00019178,2]
[373576955,1753050644519,-983.53,0.00019178,2]
[373576957,1753050644528,-1269.83,0.00019178,2]
[373576959,1753050644538,-480.0,0.00019178,2]
[373576960,1753050644549,-480.0,0.00019178,2]
[373576962,1753050644559,-1012.84,0.00019178,2]
[373576964,1753050644567,-480.0,0.00019178,2]
[373576966,1753050644577,-403.25412565,0.00019178,2]
[373576968,1753050644585,-201.74249891,0.00019178,2]
[373576971,1753050644597,-278.25750109,0.00019178,2]
[373576972,1753050644606,-216.74249886,0.00019178,2]
[373577023,1753050645083,-263.25750114,0.00019178,2]
[373577024,1753050645092,-480.0,0.00019178,2]
[373577025,1753050645101,-480.0,0.00019178,2]
[373577026,1753050645110,-480.0,0.00019178,2]
[373577027,1753050645118,-480.0,0.00019178,2]
[373577028,1753050645128,-480.0,0.00019178,2]
[373577029,1753050645137,-350.30757955,0.00019178,2]
[373577030,1753050645148,-139.79242045,0.00019178,2]
[373577031,1753050645157,-364.80757955,0.00019178,2]
[373577032,1753050645168,-462.75242045,0.00019178,2]
[373577033,1753050645177,-918.15,0.00019178,2]
[373577034,1753050645186,-249.49731755,0.00019178,2]
[373577035,1753050645200,-230.50268245,0.00019178,2]
[373577037,1753050645210,-673.52303166,0.00019178,2]
[373577054,1753050645411,-393.61696834,0.00019178,2]
[373577056,1753050645420,-91.68803166,0.00019178,2]
[373577058,1753050645432,-388.31196834,0.00019178,2]
[373577061,1753050645442,-480.0,0.00019178,2]
[373577064,1753050645455,-591.67072764,0.00019178,2]
[373577066,1753050645463,-460.0,0.00019178,2]
[373577069,1753050645473,-500.0,0.00019178,2]
[373577072,1753050645482,-480.0,0.00019178,2]
[373577074,1753050645491,-28.01730402,0.00019178,2]
[373577077,1753050645503,-359.15422484,0.00019178,2]
[373577091,1753050645633,-112.82847114,0.00019178,2]
[373577093,1753050645643,-1267.9,0.00019178,2]
[373577095,1753050645652,-1174.71,0.00019178,2]
[373577097,1753050645661,-480.0,0.00019178,2]
[373577099,1753050645670,-480.0,0.00019178,2]
[373577101,1753050645679,-1283.44,0.00019178,2]
[373577103,1753050645688,-408.6240847,0.00019178,2]
[373577105,1753050645700,-480.0,0.00019178,2]
[373577106,1753050645709,-480.0,0.00019178,2]
[373577108,1753050645719,-506.06910957,0.00019178,2]
[373577110,1753050645728,-380.0,0.00019178,2]
[373577112,1753050645737,-480.0,0.00019178,2]
[373577114,1753050645746,-736.22,0.00019178,2]
[373577116,1753050645755,-480.0,0.00019178,2]
[373577118,1753050645764,-460.0,0.00019178,2]
[373577120,1753050645775,-485.81204,0.00019178,2]
[373577122,1753050645784,-480.0,0.00019178,2]
[373577124,1753050645793,-480.0,0.00019178,2]
[373577126,1753050645801,-480.0,0.00019178,2]
[373577128,1753050645810,-480.0,0.00019178,2]
[373577130,1753050645820,-480.0,0.00019178,2]
[373577132,1753050645830,-480.0,0.00019178,2]
[373577134,1753050645839,-480.0,0.00019178,2]
[373577136,1753050645849,-480.0,0.00019178,2]
[373577138,1753050645858,-480.0,0.00019178,2]
[373577140,1753050645868,-480.0,0.00019178,2]
[373577142,1753050645877,-480.0,0.00019178,2]
[373577144,1753050645886,-480.0,0.00019178,2]
[373577146,1753050645895,-531.36,0.00019178,2]
[373577148,1753050645904,-460.0,0.00019178,2]
[373577150,1753050645912,-400.0,0.00019178,2]
[373577152,1753050645922,-541.92,0.00019178,2]
[373577154,1753050645931,-480.0,0.00019178,2]
[373577156,1753050645939,-750.1,0.00019178,2]
[373577158,1753050645949,-1033.42,0.00019178,2]
[373577159,1753050645958,-387.254084,0.00019178,2]
[373577161,1753050645967,-15.49820997,0.00019178,2]
[373577165,1753050645988,-464.50179003,0.00019178,2]
[373577167,1753050645997,-69.89820977,0.00019178,2]
[373577169,1753050646008,-372.88569664,0.00019178,2]
[373577171,1753050646017,-480.0,0.00019178,2]
[373577173,1753050646027,-480.0,0.00019178,2]
[373577175,1753050646035,-703.04077402,0.00019178,2]
[373577177,1753050646047,-1130.78922598,0.00019178,2]
[373577179,1753050646056,-956.25,0.00019178,2]
[373577181,1753050646065,-894.87,0.00019178,2]
[373577183,1753050646074,-480.0,0.00019178,2]
[373577185,1753050646084,-480.0,0.00019178,2]
[373577187,1753050646093,-918.54,0.00019178,2]
[373577189,1753050646104,-2098.73,0.00019178,2]
[373577191,1753050646113,-480.0,0.00019178,2]
[373577193,1753050646122,-651.85,0.00019178,2]
[373577195,1753050646132,-795.65,0.00019178,2]
[373577197,1753050646141,-158.96968962,0.00019178,2]
[373577199,1753050646153,-321.03031038,0.00019178,2]
[373577201,1753050646162,-338.52568509,0.00019178,2]
[373577205,1753050646185,-731.48431491,0.00019178,2]
[373577206,1753050646195,-480.0,0.00019178,2]
[373577208,1753050646207,-3240.13,0.00019178,2]
[373577210,1753050646216,-480.0,0.00019178,2]
[373577212,1753050646226,-480.0,0.00019178,2]
[373577214,1753050646235,-480.0,0.00019178,2]
[373577216,1753050646243,-386.95048536,0.00019178,2]
[373577218,1753050646252,-480.0,0.00019178,2]
[373577220,1753050646262,-480.0,0.00019178,2]
[373577222,1753050646271,-480.0,0.00019178,2]
[373577224,1753050646279,-1279.39,0.00019178,2]
[373577226,1753050646288,-480.0,0.00019178,2]
[373577228,1753050646298,-837.2,0.00019178,2]
[373577230,1753050646307,-480.0,0.00019178,2]
[373577232,1753050646316,-2703.61,0.00019178,2]
[373577234,1753050646325,-480.0,0.00019178,2]
[373577236,1753050646334,-480.0,0.00019178,2]
[373577238,1753050646343,-480.0,0.00019178,2]
[373577240,1753050646352,-672.33,0.00019178,2]
[373577242,1753050646362,-570.31,0.00019178,2]
[373577244,1753050646371,-420.0,0.00019178,2]
[373577246,1753050646380,-480.0,0.00019178,2]
[373577248,1753050646389,-480.0,0.00019178,2]
[373577250,1753050646398,-802.05,0.00019178,2]
[373577252,1753050646406,-480.0,0.00019178,2]
[373577254,1753050646415,-1173.48,0.00019178,2]
[373577256,1753050646424,-480.0,0.00019178,2]
[373577258,1753050646433,-480.0,0.00019178,2]
[373577260,1753050646442,-480.0,0.00019178,2]
[373577262,1753050646455,-266.80205315,0.00019178,2]
[373577264,1753050646464,-411.41150715,0.00019178,2]
[373577266,1753050646473,-1089.99,0.00019178,2]
[373577268,1753050646483,-480.0,0.00019178,2]
[373577270,1753050646492,-480.0,0.00019178,2]
[373577272,1753050646502,-480.0,0.00019178,2]
[373577274,1753050646511,-480.0,0.00019178,2]
[373577277,1753050646521,-480.0,0.00019178,2]
[373577279,1753050646530,-480.0,0.00019178,2]
[373577281,1753050646540,-1304.98,0.00019178,2]
[373577283,1753050646551,-527.96,0.00019178,2]
[373577285,1753050646561,-480.0,0.00019178,2]
[373577287,1753050646570,-480.0,0.00019178,2]
[373577289,1753050646579,-480.0,0.00019178,2]
[373577291,1753050646588,-2282.77,0.00019178,2]
[373577293,1753050646597,-480.0,0.00019178,2]
[373577295,1753050646607,-480.0,0.00019178,2]
[373577297,1753050646615,-480.0,0.00019178,2]
[373577299,1753050646624,-480.0,0.00019178,2]
[373577301,1753050646634,-480.0,0.00019178,2]
[373577303,1753050646643,-480.0,0.00019178,2]
[373577305,1753050646652,-643.2,0.00019178,2]
[373577307,1753050646662,-480.0,0.00019178,2]
[373577309,1753050646671,-480.0,0.00019178,2]
[373577311,1753050646681,-480.0,0.00019178,2]
[373577312,1753050646690,-1926.24,0.00019178,2]
[373577314,1753050646700,-480.0,0.00019178,2]
[373577316,1753050646711,-480.0,0.00019178,2]
[373577318,1753050646720,-942.5,0.00019178,2]
[373577320,1753050646729,-480.0,0.00019178,2]
[373577322,1753050646738,-533.17162472,0.00019178,2]
[373577325,1753050646752,-318.48837528,0.00019178,2]
[373577327,1753050646761,-480.0,0.00019178,2]
[373577329,1753050646770,-655.43,0.00019178,2]
[373577331,1753050646779,-1503.02262227,0.00019178,2]
[373577333,1753050646791,-945.98737773,0.00019178,2]
[373577335,1753050646800,-480.0,0.00019178,2]
[373577337,1753050646810,-480.0,0.00019178,2]
[373577339,1753050646819,-480.0,0.00019178,2]
[373577341,1753050646828,-480.0,0.00019178,2]
[373577343,1753050646837,-480.0,0.00019178,2]
[373577345,1753050646846,-407.08586613,0.00019178,2]
[373577347,1753050646855,-268.98091763,0.00019178,2]
[373577349,1753050646864,-480.0,0.00019178,2]
[373577351,1753050646873,-480.0,0.00019178,2]
[373577353,1753050646882,-1258.03,0.00019178,2]
[373577355,1753050646891,-465.59562056,0.00019178,2]
[373577357,1753050646900,-480.0,0.00019178,2]
[373577359,1753050646909,-480.0,0.00019178,2]
[373577360,1753050646918,-480.0,0.00019178,2]
[373577362,1753050646927,-617.36,0.00019178,2]
[373577364,1753050646936,-94.85724645,0.00019178,2]
[373577369,1753050646977,-385.14275355,0.00019178,2]
[373577371,1753050646987,-4338.5,0.00019178,2]
[373577373,1753050646996,-480.0,0.00019178,2]
[373577375,1753050647004,-686.89,0.00019178,2]
[373577377,1753050647014,-621.49,0.00019178,2]
[373577379,1753050647023,-480.0,0.00019178,2]
[373577381,1753050647032,-529.14,0.00019178,2]
[373577383,1753050647040,-964.52,0.00019178,2]
[373577385,1753050647049,-6265.81,0.00019178,2]
[373577387,1753050647058,-480.0,0.00019178,2]
[373577389,1753050647067,-840.92,0.00019178,2]
[373577391,1753050647076,-480.0,0.00019178,2]
[373577393,1753050647085,-480.0,0.00019178,2]
[373577395,1753050647095,-480.0,0.00019178,2]
[373577397,1753050647104,-480.0,0.00019178,2]
[373577399,1753050647114,-872.65,0.00019178,2]
[373577401,1753050647123,-480.0,0.00019178,2]
[373577403,1753050647132,-596.26,0.00019178,2]
[373577405,1753050647141,-519.08,0.00019178,2]
[373577407,1753050647150,-853.42,0.00019178,2]
[373577409,1753050647159,-480.0,0.00019178,2]
[373577411,1753050647169,-480.0,0.00019178,2]
[373577413,1753050647179,-480.0,0.00019178,2]
[373577415,1753050647188,-614.62,0.00019178,2]
[373577417,1753050647198,-480.0,0.00019178,2]
[373577419,1753050647210,-480.0,0.00019178,2]
[373577421,1753050647220,-480.0,0.00019178,2]
[373577424,1753050647230,-4015.75,0.00019178,2]
[373577426,1753050647240,-480.0,0.00019178,2]
[373577427,1753050647249,-480.0,0.00019178,2]
[373577429,1753050647259,-480.0,0.00019178,2]
[373577432,1753050647269,-2222.76,0.00019178,2]
[373577434,1753050647279,-480.0,0.00019178,2]
[373577436,1753050647289,-514.6,0.00019178,2]
[373577438,1753050647298,-2037.53,0.00019178,2]
[373577440,1753050647308,-500.0,0.00019178,2]